[Event "Late-Titled-Tuesday-Blitz-April-16-2024"]
[Site "Chess.com"]
[Date "2024.04.16"]
[Round "1"]
[White "dvglko"]
[Black "mishanick"]
[Result "0-1"]
[WhiteElo "2525"]
[BlackElo "3042"]
[TimeControl "180+1"]
[EndTime "14:08:13 PDT"]
[Termination "mishanick won by resignation"]

1. e4 {[%clk 0:02:56.6]} 1... c5 {[%clk 0:02:59.6]} 2. Nf3 {[%clk 0:02:56.7]}
2... d6 {[%clk 0:03:00.3]} 3. Bb5+ {[%clk 0:02:56.8]} 3... Bd7 {[%clk
0:03:00.2]} 4. Bxd7+ {[%clk 0:02:55.6]} 4... Qxd7 {[%clk 0:03:01.1]} 5. O-O
{[%clk 0:02:55.1]} 5... Nc6 {[%clk 0:02:57.7]} 6. d4 {[%clk 0:02:54.3]} 6...
cxd4 {[%clk 0:02:56.2]} 7. Nxd4 {[%clk 0:02:55.2]} 7... Nf6 {[%clk 0:02:56.7]}
8. Nc3 {[%clk 0:02:52]} 8... g6 {[%clk 0:02:56.8]} 9. Nxc6 {[%clk 0:02:32.6]}
9... bxc6 {[%clk 0:02:53.4]} 10. Bf4 {[%clk 0:02:25.9]} 10... Bg7 {[%clk
0:02:51.1]} 11. h3 {[%clk 0:02:11.4]} 11... O-O {[%clk 0:02:50.8]} 12. e5 {[%clk
0:02:09.9]} 12... dxe5 {[%clk 0:02:31.9]} 13. Bxe5 {[%clk 0:02:08.9]} 13... Qf5
{[%clk 0:02:32.5]} 14. Qe2 {[%clk 0:02:02.9]} 14... Rfd8 {[%clk 0:02:32.8]} 15.
Rad1 {[%clk 0:02:01]} 15... Qe6 {[%clk 0:02:27.8]} 16. Bxf6 {[%clk 0:01:45]}
16... Qxe2 {[%clk 0:02:22.8]} 17. Nxe2 {[%clk 0:01:45.9]} 17... Bxf6 {[%clk
0:02:23.2]} 18. b3 {[%clk 0:01:40.3]} 18... Kf8 {[%clk 0:02:19.9]} 19. Ng3
{[%clk 0:01:27.4]} 19... Bd4 {[%clk 0:02:17.6]} 20. Rd3 {[%clk 0:01:22]} 20...
Bb6 {[%clk 0:02:14.9]} 21. Rfd1 {[%clk 0:01:21.7]} 21... Rxd3 {[%clk 0:02:14.1]}
22. Rxd3 {[%clk 0:01:22.6]} 22... Ke8 {[%clk 0:02:14]} 23. Ne4 {[%clk
0:01:22.2]} 23... f5 {[%clk 0:02:11.3]} 24. Ng5 {[%clk 0:01:20.6]} 24... h6
{[%clk 0:02:11.3]} 25. Ne6 {[%clk 0:01:20.5]} 25... Kf7 {[%clk 0:02:10.1]} 26.
Nd4 {[%clk 0:01:16.2]} 26... Rc8 {[%clk 0:02:07.5]} 27. Nf3 {[%clk 0:01:07.2]}
27... Ke6 {[%clk 0:02:03]} 28. Kf1 {[%clk 0:01:06.7]} 28... g5 {[%clk
0:02:02.3]} 29. Nd4+ {[%clk 0:01:03.9]} 29... Kf6 {[%clk 0:02:02.2]} 30. Ne2
{[%clk 0:00:52.6]} 30... h5 {[%clk 0:01:59.8]} 31. h4 {[%clk 0:00:47.3]} 31...
gxh4 {[%clk 0:01:58.2]} 32. Nf4 {[%clk 0:00:40.1]} 32... Kg5 {[%clk 0:01:48.6]}
33. Ne6+ {[%clk 0:00:37.4]} 33... Kf6 {[%clk 0:01:49.2]} 34. Nf4 {[%clk
0:00:37.5]} 34... Bc7 {[%clk 0:01:45.5]} 35. Ne2 {[%clk 0:00:27.8]} 35... Bd6
{[%clk 0:01:38.7]} 36. Rh3 {[%clk 0:00:24.4]} 36... Kg5 {[%clk 0:01:38.3]} 37.
Nd4 {[%clk 0:00:20.9]} 37... e5 {[%clk 0:01:20]} 38. Nf3+ {[%clk 0:00:21.1]}
38... Kf6 {[%clk 0:01:20.6]} 39. Rxh4 {[%clk 0:00:21.4]} 39... e4 {[%clk
0:01:20.4]} 40. Nd4 {[%clk 0:00:20.5]} 40... Be5 {[%clk 0:01:15]} 41. c3 {[%clk
0:00:19.8]} 41... Kg5 {[%clk 0:01:11.8]} 42. g3 {[%clk 0:00:13.8]} 42... Bxd4
{[%clk 0:01:12.1]} 43. cxd4 {[%clk 0:00:14.4]} 43... Rd8 {[%clk 0:01:12.8]} 44.
Ke2 {[%clk 0:00:14]} 44... Rxd4 {[%clk 0:01:13]} 45. Rh1 {[%clk 0:00:14.5]}
45... Rd5 {[%clk 0:00:52.7]} 46. Rc1 {[%clk 0:00:14.5]} 46... c5 {[%clk
0:00:53.4]} 47. Ke3 {[%clk 0:00:14.7]} 47... Kg4 {[%clk 0:00:52.5]} 48. Ke2
{[%clk 0:00:13.1]} 48... f4 {[%clk 0:00:42.7]} 49. gxf4 {[%clk 0:00:13.5]} 49...
Kxf4 {[%clk 0:00:43.6]} 50. Rh1 {[%clk 0:00:13.6]} 50... Kg4 {[%clk 0:00:41.8]}
51. Ke3 {[%clk 0:00:13.7]} 51... Re5 {[%clk 0:00:39.4]} 52. Rg1+ {[%clk
0:00:14.2]} 52... Kf5 {[%clk 0:00:39.7]} 53. Rh1 {[%clk 0:00:14.2]} 53... Kg5
{[%clk 0:00:39.7]} 54. Rg1+ {[%clk 0:00:14.9]} 54... Kf6 {[%clk 0:00:39.5]} 55.
Rh1 {[%clk 0:00:09.2]} 55... Kg6 {[%clk 0:00:38.3]} 56. Kf4 {[%clk 0:00:09.3]}
56... Rf5+ {[%clk 0:00:38.2]} 57. Kxe4 {[%clk 0:00:09.7]} 57... Rxf2 {[%clk
0:00:38.5]} 58. a4 {[%clk 0:00:08.8]} 58... Rf5 {[%clk 0:00:34.7]} 59. Rg1+
{[%clk 0:00:08.5]} 59... Rg5 {[%clk 0:00:35.4]} 60. Rh1 {[%clk 0:00:08.6]} 60...
Rg3 {[%clk 0:00:33.3]} 61. Kd5 {[%clk 0:00:07.1]} 61... Rxb3 {[%clk 0:00:33.8]}
62. Kxc5 {[%clk 0:00:07.6]} 62... a5 {[%clk 0:00:32.5]} 63. Kc4 {[%clk
0:00:05.7]} 63... Rb4+ {[%clk 0:00:32.5]} 64. Kc5 {[%clk 0:00:03.2]} 64... h4
{[%clk 0:00:32.7]} 65. Rg1+ {[%clk 0:00:02.6]} 65... Kf5 {[%clk 0:00:33.4]} 66.
Rh1 {[%clk 0:00:03.1]} 66... Kg4 {[%clk 0:00:33]} 67. Ra1 {[%clk 0:00:04]} 67...
h3 {[%clk 0:00:33]} 68. Ra3 {[%clk 0:00:04.3]} 68... h2 {[%clk 0:00:33.1]} 69.
Ra1 {[%clk 0:00:04.3]} 69... Kh3 {[%clk 0:00:32.4]} 70. Rd1 {[%clk 0:00:04.2]}
70... Rxa4 {[%clk 0:00:31.8]} 0-1

[Event "Late-Titled-Tuesday-Blitz-April-16-2024"]
[Site "Chess.com"]
[Date "2024.04.16"]
[Round "1"]
[White "CURRUTACO59"]
[Black "crazy_but_lazy"]
[Result "1-0"]
[WhiteElo "2167"]
[BlackElo "2535"]
[TimeControl "180+1"]
[EndTime "14:08:16 PDT"]
[Termination "CURRUTACO59 won on time"]

1. Nf3 {[%clk 0:02:57.8]} 1... d5 {[%clk 0:02:58.9]} 2. d4 {[%clk 0:02:57.7]}
2... c6 {[%clk 0:02:56.4]} 3. c4 {[%clk 0:02:57.3]} 3... Nf6 {[%clk 0:02:54]} 4.
e3 {[%clk 0:02:57]} 4... e6 {[%clk 0:02:51.4]} 5. Nbd2 {[%clk 0:02:56.4]} 5...
Nbd7 {[%clk 0:02:51.3]} 6. Bd3 {[%clk 0:02:56]} 6... b6 {[%clk 0:02:51.5]} 7.
O-O {[%clk 0:02:55.8]} 7... Bb7 {[%clk 0:02:51.9]} 8. e4 {[%clk 0:02:56]} 8...
dxe4 {[%clk 0:02:49.7]} 9. Nxe4 {[%clk 0:02:56.9]} 9... Nxe4 {[%clk 0:02:50.3]}
10. Bxe4 {[%clk 0:02:56.9]} 10... Nf6 {[%clk 0:02:50.9]} 11. Bc2 {[%clk
0:02:54.7]} 11... Be7 {[%clk 0:02:43.3]} 12. Qe2 {[%clk 0:02:51.8]} 12... O-O
{[%clk 0:02:43.2]} 13. Bg5 {[%clk 0:02:47.1]} 13... c5 {[%clk 0:02:36.3]} 14.
dxc5 {[%clk 0:02:42.2]} 14... Bxc5 {[%clk 0:02:30]} 15. Rad1 {[%clk 0:02:37.9]}
15... Qc7 {[%clk 0:02:29.9]} 16. Ne5 {[%clk 0:02:06.6]} 16... Be7 {[%clk
0:01:59.7]} 17. Bxf6 {[%clk 0:01:19.8]} 17... Bxf6 {[%clk 0:01:26]} 18. Qd3
{[%clk 0:01:13.8]} 18... g6 {[%clk 0:01:17.3]} 19. Nd7 {[%clk 0:01:11.8]} 19...
Bxb2 {[%clk 0:01:17.4]} 20. Nxf8 {[%clk 0:01:08.4]} 20... Rxf8 {[%clk
0:01:18.3]} 21. Qd7 {[%clk 0:00:53.2]} 21... Rc8 {[%clk 0:01:15.1]} 22. Qxc7
{[%clk 0:00:51.4]} 22... Rxc7 {[%clk 0:01:15.5]} 23. Bb3 {[%clk 0:00:50.5]}
23... e5 {[%clk 0:00:48]} 24. Rd8+ {[%clk 0:00:48.9]} 24... Kg7 {[%clk 0:00:48]}
25. Rfd1 {[%clk 0:00:48.1]} 25... Bd4 {[%clk 0:00:47.9]} 26. Kf1 {[%clk
0:00:42.2]} 26... Ba6 {[%clk 0:00:30]} 27. Ke2 {[%clk 0:00:25.4]} 27... Bxc4+
{[%clk 0:00:23.4]} 28. Bxc4 {[%clk 0:00:24.7]} 28... Rxc4 {[%clk 0:00:24.3]} 29.
Rd2 {[%clk 0:00:24.3]} 29... g5 {[%clk 0:00:20.8]} 30. g4 {[%clk 0:00:21.2]}
30... a5 {[%clk 0:00:20.6]} 31. Rd5 {[%clk 0:00:15.4]} 31... Rc3 {[%clk
0:00:16.8]} 32. Rb5 {[%clk 0:00:14.1]} 32... Rh3 {[%clk 0:00:15.8]} 33. Kf1
{[%clk 0:00:10.1]} 33... Rxh2 {[%clk 0:00:12.9]} 34. Rc2 {[%clk 0:00:10.3]}
34... Rh3 {[%clk 0:00:10.8]} 35. Rc7 {[%clk 0:00:08.8]} 35... Rf3 {[%clk
0:00:09.1]} 36. Rc2 {[%clk 0:00:07]} 36... Rf4 {[%clk 0:00:08.2]} 37. Rb3 {[%clk
0:00:04.6]} 37... Rxg4 {[%clk 0:00:08.4]} 38. Rf3 {[%clk 0:00:04.7]} 38... Rf4
{[%clk 0:00:07.8]} 39. Rxf4 {[%clk 0:00:04.2]} 39... gxf4 {[%clk 0:00:08.7]} 40.
Ke2 {[%clk 0:00:04.6]} 40... e4 {[%clk 0:00:05.1]} 41. Rc4 {[%clk 0:00:04.1]}
41... f3+ {[%clk 0:00:05.3]} 42. Kf1 {[%clk 0:00:03.1]} 42... Bc5 {[%clk
0:00:01.7]} 43. Rxe4 {[%clk 0:00:03.7]} 43... f5 {[%clk 0:00:02.6]} 44. Re6
{[%clk 0:00:03.6]} 44... h5 {[%clk 0:00:02.6]} 45. Rc6 {[%clk 0:00:03.3]} 45...
a4 {[%clk 0:00:03]} 46. Ke1 {[%clk 0:00:03.5]} 46... a3 {[%clk 0:00:03.2]} 47.
Kf1 {[%clk 0:00:03.6]} 47... Kf7 {[%clk 0:00:02.8]} 48. Rh6 {[%clk 0:00:03.4]}
48... b5 {[%clk 0:00:01.8]} 49. Rxh5 {[%clk 0:00:03.5]} 49... Kf6 {[%clk
0:00:02.6]} 50. Rh6+ {[%clk 0:00:03.7]} 50... Ke5 {[%clk 0:00:03]} 51. Rc6
{[%clk 0:00:03.5]} 51... Kd5 {[%clk 0:00:03.2]} 52. Rf6 {[%clk 0:00:03.6]} 52...
Ke4 {[%clk 0:00:03.3]} 53. Rc6 {[%clk 0:00:03.5]} 53... Kd4 {[%clk 0:00:03.2]}
54. Rf6 {[%clk 0:00:03.4]} 54... Ke5 {[%clk 0:00:01.3]} 55. Rc6 {[%clk
0:00:03.4]} 55... Kd4 {[%clk 0:00:02]} 56. Rf6 {[%clk 0:00:03]} 56... Kc3 {[%clk
0:00:01.7]} 57. Rxf5 {[%clk 0:00:03]} 57... Bd4 {[%clk 0:00:01.5]} 58. Rxb5
{[%clk 0:00:02.1]} 1-0

[Event "Late-Titled-Tuesday-Blitz-April-16-2024"]
[Site "Chess.com"]
[Date "2024.04.16"]
[Round "1"]
[White "alexrustemov"]
[Black "masterofpuppets2"]
[Result "1-0"]
[WhiteElo "2851"]
[BlackElo "2470"]
[TimeControl "180+1"]
[EndTime "14:08:17 PDT"]
[Termination "alexrustemov won on time"]

1. d4 {[%clk 0:03:00.9]} 1... d5 {[%clk 0:02:59.5]} 2. c4 {[%clk 0:03:01.3]}
2... e6 {[%clk 0:02:58.9]} 3. Nc3 {[%clk 0:03:01.7]} 3... c5 {[%clk 0:02:59.2]}
4. cxd5 {[%clk 0:03:00.3]} 4... exd5 {[%clk 0:03:00.1]} 5. Nf3 {[%clk
0:02:59.7]} 5... Nf6 {[%clk 0:03:00.6]} 6. Bg5 {[%clk 0:02:58.1]} 6... Be6
{[%clk 0:02:59.9]} 7. dxc5 {[%clk 0:02:54.3]} 7... Bxc5 {[%clk 0:02:59.2]} 8. e3
{[%clk 0:02:54.1]} 8... Nc6 {[%clk 0:02:58.5]} 9. Bb5 {[%clk 0:02:48.9]} 9...
O-O {[%clk 0:02:57.8]} 10. O-O {[%clk 0:02:48.1]} 10... Rc8 {[%clk 0:02:54.1]}
11. Bxc6 {[%clk 0:02:44.5]} 11... bxc6 {[%clk 0:02:41.2]} 12. Rc1 {[%clk
0:02:43.3]} 12... Be7 {[%clk 0:02:40.4]} 13. Na4 {[%clk 0:02:38.9]} 13... Nd7
{[%clk 0:02:33.2]} 14. Bxe7 {[%clk 0:02:35.9]} 14... Qxe7 {[%clk 0:02:34.1]} 15.
h3 {[%clk 0:02:14.7]} 15... c5 {[%clk 0:02:25.6]} 16. b3 {[%clk 0:02:13.2]}
16... Rfd8 {[%clk 0:02:24.4]} 17. Qc2 {[%clk 0:02:07.3]} 17... h6 {[%clk
0:02:21.4]} 18. Rfd1 {[%clk 0:02:06.5]} 18... Qf6 {[%clk 0:02:10.2]} 19. Qb2
{[%clk 0:02:01.3]} 19... Qxb2 {[%clk 0:02:07.5]} 20. Nxb2 {[%clk 0:02:02.2]}
20... Nb6 {[%clk 0:01:57.7]} 21. Nd3 {[%clk 0:02:00.3]} 21... c4 {[%clk
0:01:56.5]} 22. Nf4 {[%clk 0:01:55.3]} 22... g5 {[%clk 0:01:47.2]} 23. Ne2
{[%clk 0:01:55]} 23... a5 {[%clk 0:01:24.9]} 24. Nc3 {[%clk 0:01:49]} 24... a4
{[%clk 0:01:18.2]} 25. b4 {[%clk 0:01:47.6]} 25... a3 {[%clk 0:01:16.2]} 26. Nd4
{[%clk 0:01:47.1]} 26... Kf8 {[%clk 0:00:54.6]} 27. Ncb5 {[%clk 0:01:46.2]}
27... Rd7 {[%clk 0:00:39.2]} 28. Rc3 {[%clk 0:01:43.3]} 28... Ra8 {[%clk
0:00:37.8]} 29. Nc6 {[%clk 0:01:26.9]} 29... Rb7 {[%clk 0:00:28.1]} 30. Rxa3
{[%clk 0:01:25.2]} 30... Rxa3 {[%clk 0:00:22.9]} 31. Nxa3 {[%clk 0:01:26.1]}
31... Na4 {[%clk 0:00:16.4]} 32. Nc2 {[%clk 0:01:19.3]} 32... Bd7 {[%clk
0:00:15.8]} 33. N6d4 {[%clk 0:01:15.3]} 33... Be6 {[%clk 0:00:16.4]} 34. Ra1
{[%clk 0:01:02.3]} 34... Ke7 {[%clk 0:00:14.8]} 35. Kf1 {[%clk 0:01:02.2]} 35...
Kd6 {[%clk 0:00:15.1]} 36. Ke2 {[%clk 0:01:02.4]} 36... Nc3+ {[%clk 0:00:14.3]}
37. Kd2 {[%clk 0:00:57]} 37... Ne4+ {[%clk 0:00:13.9]} 38. Ke1 {[%clk
0:00:57.5]} 38... f5 {[%clk 0:00:06.8]} 39. a4 {[%clk 0:00:56.1]} 39... f4
{[%clk 0:00:07.5]} 40. a5 {[%clk 0:00:51.1]} 40... fxe3 {[%clk 0:00:07.5]} 41.
fxe3 {[%clk 0:00:51.2]} 41... Bc8 {[%clk 0:00:03.6]} 42. b5 {[%clk 0:00:44.4]}
42... Rb8 {[%clk 0:00:04.1]} 43. a6 {[%clk 0:00:42.9]} 43... Nc5 {[%clk
0:00:04.2]} 44. a7 {[%clk 0:00:38.4]} 44... Ra8 {[%clk 0:00:04.6]} 45. b6 {[%clk
0:00:38.8]} 45... Nd7 {[%clk 0:00:03.4]} 46. Rb1 {[%clk 0:00:37.8]} 46... Bb7
{[%clk 0:00:01.7]} 47. Kd2 {[%clk 0:00:36.8]} 47... Kc5 {[%clk 0:00:02.1]} 48.
Ne6+ {[%clk 0:00:35.3]} 48... Kd6 {[%clk 0:00:03]} 49. Ncd4 {[%clk 0:00:31.5]}
49... Nc5 {[%clk 0:00:02.6]} 50. Nxc5 {[%clk 0:00:30.7]} 50... Kxc5 {[%clk
0:00:03.5]} 51. Rb5+ {[%clk 0:00:28.5]} 51... Kd6 {[%clk 0:00:04.4]} 52. Rb1
{[%clk 0:00:20.9]} 52... Re8 {[%clk 0:00:04.9]} 53. Nb5+ {[%clk 0:00:19.9]}
53... Kc6 {[%clk 0:00:05.5]} 54. Nc7 {[%clk 0:00:20.5]} 54... Rf8 {[%clk
0:00:05.6]} 55. Kc3 {[%clk 0:00:19.9]} 55... Rc8 {[%clk 0:00:04.3]} 56. Kd4
{[%clk 0:00:19.9]} 56... Rf8 {[%clk 0:00:04.5]} 57. Nxd5 {[%clk 0:00:19.3]}
57... Rd8 {[%clk 0:00:03]} 58. e4 {[%clk 0:00:19.6]} 58... Rd7 {[%clk
0:00:01.5]} 59. Kxc4 {[%clk 0:00:19.6]} 59... Rd8 {[%clk 0:00:01.8]} 60. Kd4
{[%clk 0:00:19.2]} 60... Rd7 {[%clk 0:00:01.8]} 61. Rc1+ {[%clk 0:00:19.3]}
61... Kb5 {[%clk 0:00:01.6]} 62. Rc7 {[%clk 0:00:19.9]} 62... Rxc7 {[%clk
0:00:01.2]} 63. bxc7 {[%clk 0:00:19.7]} 63... Ka6 {[%clk 0:00:02.1]} 64. c8=Q
{[%clk 0:00:19.1]} 64... Kxa7 {[%clk 0:00:02.7]} 65. Qc5+ {[%clk 0:00:18.3]} 1-0

[Event "Late-Titled-Tuesday-Blitz-April-16-2024"]
[Site "Chess.com"]
[Date "2024.04.16"]
[Round "1"]
[White "robertoalejandro10"]
[Black "campochess"]
[Result "1/2-1/2"]
[WhiteElo "2556"]
[BlackElo "2216"]
[TimeControl "180+1"]
[EndTime "14:08:26 PDT"]
[Termination "Game drawn - insufficient material"]

1. Nf3 {[%clk 0:02:58]} 1... c5 {[%clk 0:02:59.8]} 2. c4 {[%clk 0:02:57.7]} 2...
Nc6 {[%clk 0:02:59.5]} 3. g3 {[%clk 0:02:57.7]} 3... g6 {[%clk 0:02:59.5]} 4.
Bg2 {[%clk 0:02:57.3]} 4... Bg7 {[%clk 0:02:59.4]} 5. O-O {[%clk 0:02:57.8]}
5... d6 {[%clk 0:02:59.2]} 6. Nc3 {[%clk 0:02:58.2]} 6... Nf6 {[%clk 0:02:58.4]}
7. b3 {[%clk 0:02:58.4]} 7... O-O {[%clk 0:02:57.8]} 8. Bb2 {[%clk 0:02:58.3]}
8... Ng4 {[%clk 0:02:47.9]} 9. h3 {[%clk 0:02:56.7]} 9... Nge5 {[%clk
0:02:47.4]} 10. Kh2 {[%clk 0:02:52.4]} 10... Nxf3+ {[%clk 0:02:44.2]} 11. Bxf3
{[%clk 0:02:53.3]} 11... Bd7 {[%clk 0:02:44.2]} 12. d3 {[%clk 0:02:52.7]} 12...
Rb8 {[%clk 0:02:34.9]} 13. Qd2 {[%clk 0:02:51.9]} 13... a6 {[%clk 0:02:33.9]}
14. Rfd1 {[%clk 0:02:50.1]} 14... b5 {[%clk 0:02:33]} 15. Bg2 {[%clk 0:02:49.2]}
15... b4 {[%clk 0:02:33.1]} 16. Na4 {[%clk 0:02:49]} 16... Bxb2 {[%clk 0:02:31]}
17. Nxb2 {[%clk 0:02:48.7]} 17... Nd4 {[%clk 0:02:27.4]} 18. e3 {[%clk
0:02:45.9]} 18... Nf5 {[%clk 0:02:27.2]} 19. d4 {[%clk 0:02:44]} 19... cxd4
{[%clk 0:02:25.7]} 20. exd4 {[%clk 0:02:44.9]} 20... Qc8 {[%clk 0:02:23.8]} 21.
d5 {[%clk 0:02:39.8]} 21... Ng7 {[%clk 0:02:23]} 22. Re1 {[%clk 0:02:39.5]}
22... Re8 {[%clk 0:02:22]} 23. Re2 {[%clk 0:02:37.2]} 23... Qc5 {[%clk 0:02:15]}
24. Rae1 {[%clk 0:02:35.9]} 24... e5 {[%clk 0:02:05.9]} 25. dxe6 {[%clk
0:02:34.6]} 25... Nxe6 {[%clk 0:02:03.9]} 26. Nd3 {[%clk 0:02:34.1]} 26... Qd4
{[%clk 0:01:58.9]} 27. Bd5 {[%clk 0:02:21.2]} 27... a5 {[%clk 0:01:57.4]} 28.
Re4 {[%clk 0:01:40]} 28... Qf6 {[%clk 0:01:44.5]} 29. Nf4 {[%clk 0:01:29.7]}
29... Ng7 {[%clk 0:01:43.6]} 30. Rxe8+ {[%clk 0:00:41.6]} 30... Rxe8 {[%clk
0:01:42.2]} 31. Bg2 {[%clk 0:00:42.2]} 31... Re5 {[%clk 0:01:37.6]} 32. Nd5
{[%clk 0:00:40.7]} 32... Qd8 {[%clk 0:01:27.4]} 33. Rxe5 {[%clk 0:00:38]} 33...
dxe5 {[%clk 0:01:26.6]} 34. Qe3 {[%clk 0:00:31.5]} 34... f6 {[%clk 0:01:24.7]}
35. c5 {[%clk 0:00:26.9]} 35... Ne6 {[%clk 0:01:22.6]} 36. Qd3 {[%clk
0:00:20.6]} 36... Nd4 {[%clk 0:01:21.9]} 37. Qc4 {[%clk 0:00:20.8]} 37... Kg7
{[%clk 0:01:20]} 38. Ne3 {[%clk 0:00:17.5]} 38... Be6 {[%clk 0:01:16.9]} 39. Qa6
{[%clk 0:00:17.6]} 39... Bf7 {[%clk 0:01:10.5]} 40. c6 {[%clk 0:00:17.1]} 40...
Qd6 {[%clk 0:01:05.3]} 41. Qb7 {[%clk 0:00:16.2]} 41... Ne6 {[%clk 0:01:03.2]}
42. Nc4 {[%clk 0:00:14.6]} 42... Qc7 {[%clk 0:01:03.3]} 43. Qxc7 {[%clk
0:00:13.4]} 43... Nxc7 {[%clk 0:01:03]} 44. Nxa5 {[%clk 0:00:14.3]} 44... Kf8
{[%clk 0:00:56.2]} 45. Kg1 {[%clk 0:00:09.1]} 45... Ke7 {[%clk 0:00:56]} 46. Nb7
{[%clk 0:00:08.3]} 46... Bd5 {[%clk 0:00:53.9]} 47. f4 {[%clk 0:00:05.8]} 47...
exf4 {[%clk 0:00:52.8]} 48. gxf4 {[%clk 0:00:06]} 48... Bxg2 {[%clk 0:00:51.1]}
49. Kxg2 {[%clk 0:00:06.9]} 49... Ne6 {[%clk 0:00:50.9]} 50. Kg3 {[%clk
0:00:05.3]} 50... h5 {[%clk 0:00:49.5]} 51. Na5 {[%clk 0:00:04.1]} 51... Kd6
{[%clk 0:00:48.3]} 52. Nc4+ {[%clk 0:00:05]} 52... Kxc6 {[%clk 0:00:46.8]} 53.
Kf3 {[%clk 0:00:05.9]} 53... Kc5 {[%clk 0:00:45.7]} 54. Ke4 {[%clk 0:00:06.8]}
54... g5 {[%clk 0:00:44.7]} 55. fxg5 {[%clk 0:00:06]} 55... Nxg5+ {[%clk
0:00:44.8]} 56. Kf5 {[%clk 0:00:06.9]} 56... Nxh3 {[%clk 0:00:44.8]} 57. Kxf6
{[%clk 0:00:07.8]} 57... Nf2 {[%clk 0:00:44.5]} 58. Kg5 {[%clk 0:00:07.9]} 58...
Nd3 {[%clk 0:00:43.4]} 59. Kxh5 {[%clk 0:00:07.5]} 59... Nc1 {[%clk 0:00:43.5]}
60. a4 {[%clk 0:00:04.7]} 60... Nxb3 {[%clk 0:00:42]} 61. Ne3 {[%clk 0:00:04.1]}
61... Nd4 {[%clk 0:00:38.7]} 62. Kg4 {[%clk 0:00:03.7]} 62... Nc6 {[%clk
0:00:37.7]} 63. Kf4 {[%clk 0:00:03]} 63... b3 {[%clk 0:00:37.9]} 64. Nd1 {[%clk
0:00:03.4]} 64... Kb4 {[%clk 0:00:37.8]} 65. Ke3 {[%clk 0:00:03.9]} 65... Kxa4
{[%clk 0:00:36.6]} 66. Kd2 {[%clk 0:00:04.8]} 66... Kb4 {[%clk 0:00:36.7]} 67.
Kc1 {[%clk 0:00:05.2]} 67... Nd4 {[%clk 0:00:36.7]} 68. Kb1 {[%clk 0:00:05.7]}
68... Nc2 {[%clk 0:00:36.3]} 69. Nb2 {[%clk 0:00:05.5]} 69... Ne1 {[%clk
0:00:34.1]} 70. Nd1 {[%clk 0:00:05.1]} 70... Ka3 {[%clk 0:00:31.9]} 71. Nf2
{[%clk 0:00:04.1]} 71... b2 {[%clk 0:00:30.3]} 72. Nd1 {[%clk 0:00:03.2]} 72...
Nd3 {[%clk 0:00:30.3]} 73. Nxb2 {[%clk 0:00:04]} 1/2-1/2

[Event "Late-Titled-Tuesday-Blitz-April-16-2024"]
[Site "Chess.com"]
[Date "2024.04.16"]
[Round "1"]
[White "WilsonPalencia21"]
[Black "Kostukov_Alex"]
[Result "0-1"]
[WhiteElo "2584"]
[BlackElo "2292"]
[TimeControl "180+1"]
[EndTime "14:08:29 PDT"]
[Termination "Kostukov_Alex won on time"]

1. d4 {[%clk 0:02:59.1]} 1... g6 {[%clk 0:02:59.4]} 2. c4 {[%clk 0:02:57.7]}
2... Bg7 {[%clk 0:02:59.8]} 3. Nf3 {[%clk 0:02:57.6]} 3... d6 {[%clk 0:03:00.4]}
4. Nc3 {[%clk 0:02:57.5]} 4... e5 {[%clk 0:03:00.6]} 5. d5 {[%clk 0:02:56.2]}
5... f5 {[%clk 0:03:00.2]} 6. e4 {[%clk 0:02:55.7]} 6... Nf6 {[%clk 0:03:01.1]}
7. Bd3 {[%clk 0:02:53.7]} 7... O-O {[%clk 0:02:58.6]} 8. h3 {[%clk 0:02:52.6]}
8... a5 {[%clk 0:02:53.9]} 9. Qe2 {[%clk 0:02:48.4]} 9... Na6 {[%clk 0:02:49.4]}
10. Bg5 {[%clk 0:02:44.6]} 10... h6 {[%clk 0:02:44.9]} 11. Bxf6 {[%clk 0:02:37]}
11... Qxf6 {[%clk 0:02:44.1]} 12. O-O-O {[%clk 0:02:36]} 12... Nc5 {[%clk
0:02:33.8]} 13. Nd2 {[%clk 0:02:29]} 13... f4 {[%clk 0:02:20.4]} 14. Kb1 {[%clk
0:02:24.4]} 14... Bd7 {[%clk 0:02:20.1]} 15. Bc2 {[%clk 0:02:11.7]} 15... a4
{[%clk 0:02:18.6]} 16. b4 {[%clk 0:02:09]} 16... axb3 {[%clk 0:02:18.2]} 17.
axb3 {[%clk 0:02:08.1]} 17... Ra3 {[%clk 0:02:09.7]} 18. Kb2 {[%clk 0:02:07.8]}
18... Rfa8 {[%clk 0:02:08.9]} 19. Ra1 {[%clk 0:02:07.4]} 19... Rxa1 {[%clk
0:02:07.2]} 20. Rxa1 {[%clk 0:02:06]} 20... Rxa1 {[%clk 0:02:08.1]} 21. Kxa1
{[%clk 0:02:06.9]} 21... Qg5 {[%clk 0:01:57.1]} 22. Qf1 {[%clk 0:01:57.6]} 22...
Na6 {[%clk 0:01:50.4]} 23. Nf3 {[%clk 0:01:56.8]} 23... Qd8 {[%clk 0:01:48.5]}
24. Kb2 {[%clk 0:01:56.3]} 24... Qa8 {[%clk 0:01:43.4]} 25. Qa1 {[%clk
0:01:54.7]} 25... Qa7 {[%clk 0:01:43]} 26. Nd1 {[%clk 0:01:42.9]} 26... Qb6
{[%clk 0:01:39.3]} 27. Qa3 {[%clk 0:01:38.2]} 27... g5 {[%clk 0:01:35.7]} 28.
Kc3 {[%clk 0:01:23.8]} 28... Bf6 {[%clk 0:01:30.5]} 29. b4 {[%clk 0:01:18.2]}
29... g4 {[%clk 0:00:59.5]} 30. hxg4 {[%clk 0:00:34.4]} 30... Bxg4 {[%clk
0:00:59.2]} 31. Qa5 {[%clk 0:00:34.2]} 31... Bxf3 {[%clk 0:00:59]} 32. Qxb6
{[%clk 0:00:33.6]} 32... cxb6 {[%clk 0:00:58.6]} 33. gxf3 {[%clk 0:00:33.6]}
33... h5 {[%clk 0:00:58.9]} 34. Bd3 {[%clk 0:00:33.6]} 34... Nc7 {[%clk
0:00:50.9]} 35. Bf1 {[%clk 0:00:31.5]} 35... Kf7 {[%clk 0:00:48.4]} 36. Nb2
{[%clk 0:00:28.8]} 36... Bh4 {[%clk 0:00:42.1]} 37. Nd3 {[%clk 0:00:23]} 37...
Ke7 {[%clk 0:00:41.6]} 38. Kd2 {[%clk 0:00:21.3]} 38... b5 {[%clk 0:00:40]} 39.
c5 {[%clk 0:00:20.5]} 39... Kd7 {[%clk 0:00:35.3]} 40. Bh3+ {[%clk 0:00:19.8]}
40... Ke7 {[%clk 0:00:34.1]} 41. Ke2 {[%clk 0:00:19.6]} 41... Bf6 {[%clk
0:00:31.4]} 42. Nc1 {[%clk 0:00:17.8]} 42... Na6 {[%clk 0:00:26.8]} 43. c6
{[%clk 0:00:16.9]} 43... bxc6 {[%clk 0:00:25.8]} 44. dxc6 {[%clk 0:00:17.8]}
44... Kd8 {[%clk 0:00:25.6]} 45. Na2 {[%clk 0:00:16.5]} 45... Kc7 {[%clk
0:00:25.2]} 46. Bd7 {[%clk 0:00:17.1]} 46... Nb8 {[%clk 0:00:23.6]} 47. Be8
{[%clk 0:00:16.2]} 47... Nxc6 {[%clk 0:00:23.6]} 48. Bxh5 {[%clk 0:00:13]} 48...
Nd4+ {[%clk 0:00:21.5]} 49. Kd3 {[%clk 0:00:13.6]} 49... Kb6 {[%clk 0:00:19.6]}
50. Nc3 {[%clk 0:00:12.5]} 50... Bh4 {[%clk 0:00:18.2]} 51. Nd1 {[%clk
0:00:12.1]} 51... Kc6 {[%clk 0:00:17.8]} 52. Be8+ {[%clk 0:00:12]} 52... Kc7
{[%clk 0:00:18.1]} 53. Kd2 {[%clk 0:00:12.1]} 53... Nxf3+ {[%clk 0:00:17.8]} 54.
Kd3 {[%clk 0:00:12.6]} 54... Nd4 {[%clk 0:00:18.7]} 55. Bh5 {[%clk 0:00:10.5]}
55... Be7 {[%clk 0:00:18.3]} 56. f3 {[%clk 0:00:09.8]} 56... Bh4 {[%clk
0:00:16.4]} 57. Bg4 {[%clk 0:00:09.6]} 57... Be1 {[%clk 0:00:16.1]} 58. Bh5
{[%clk 0:00:04.8]} 58... Bxb4 {[%clk 0:00:15.9]} 59. Nf2 {[%clk 0:00:05.4]}
59... Be1 {[%clk 0:00:13.3]} 60. Nh3 {[%clk 0:00:05.2]} 60... b4 {[%clk
0:00:13.5]} 61. Bf7 {[%clk 0:00:01.5]} 61... Kb6 {[%clk 0:00:11.3]} 62. Ng5
{[%clk 0:00:01.7]} 62... Bh4 {[%clk 0:00:08.7]} 63. Ne6 {[%clk 0:00:01.7]} 63...
Nxf3 {[%clk 0:00:07.8]} 64. Kc4 {[%clk 0:00:02]} 64... Be1 {[%clk 0:00:06.6]}
0-1